fUST/lending_fUST_20250422
["ID","MTS","AMOUNT","RATE_DAILY","PERIOD"]
[358619123,1745314241688,-3664.15,0.00022465,2]
[358619124,1745314241698,-500.0,0.00022465,2]
[358619125,1745314241707,-500.0,0.00022465,2]
[358619126,1745314241716,-500.0,0.00022465,2]
[358619127,1745314241726,-880.71,0.00022465,2]
[358619128,1745314241735,-500.0,0.00022465,2]
[358619129,1745314241745,-819.23,0.00022465,2]
[358619130,1745314241755,-164.575229,0.00022465,7]
[358619131,1745314241764,-164.575229,0.00022465,7]
[358619132,1745314241773,-500.0,0.00022465,2]
[358619133,1745314241782,-500.0,0.00022465,2]
[358619134,1745314241792,-164.575229,0.00022465,7]
[358619135,1745314241802,-164.575229,0.00022465,7]
[358619136,1745314241811,-500.0,0.00022465,2]
[358619137,1745314241821,-1875.31,0.00022465,2]
[358619138,1745314241830,-661.71,0.00022465,2]
[358619139,1745314241840,-500.0,0.00022465,2]
[358619140,1745314241849,-634.83,0.00022465,2]
[358619141,1745314241858,-500.0,0.00022465,2]
[358619142,1745314241868,-500.0,0.00022465,2]
[358619143,1745314241878,-500.0,0.00022465,2]
[358619144,1745314241888,-500.0,0.00022465,2]
[358619145,1745314241897,-500.0,0.00022465,2]
[358619146,1745314241907,-500.0,0.00022465,2]
[358619147,1745314241917,-151.0,0.00022465,7]
[358619148,1745314241927,-500.0,0.00022465,2]
[358619149,1745314241936,-1027.86,0.00022465,2]
[358619150,1745314241946,-500.0,0.00022465,2]
[358619151,1745314241955,-500.0,0.00022465,2]
[358619152,1745314241965,-2241.63,0.00022465,2]
[358619153,1745314241975,-500.0,0.00022465,2]
[358619154,1745314241984,-500.0,0.00022465,2]
[358619155,1745314241993,-8171.88,0.00022465,2]
[358619156,1745314242003,-500.0,0.00022465,2]
[358619157,1745314242013,-500.0,0.00022465,2]
[358619158,1745314242022,-500.0,0.00022465,2]
[358619159,1745314242032,-672.1,0.00022465,2]
[358619160,1745314242041,-500.0,0.00022465,2]
[358619161,1745314242051,-827.8,0.00022465,2]
[358619162,1745314242061,-500.0,0.00022465,2]
[358619163,1745314242070,-500.0,0.00022465,2]
[358619164,1745314242080,-1028.74,0.00022465,2]
[358619165,1745314242090,-629.89,0.00022465,2]
[358619166,1745314242099,-6020.14,0.00022465,2]
[358619167,1745314242109,-500.0,0.00022465,2]
[358619168,1745314242118,-620.71,0.00022465,2]
[358619169,1745314242127,-500.0,0.00022465,2]
[358619170,1745314242136,-531.69,0.00022465,2]
[358619171,1745314242146,-509.81,0.00022465,2]
[358619172,1745314242156,-500.0,0.00022465,2]
[358619173,1745314242166,-534.38,0.00022465,2]
[358619174,1745314242175,-500.0,0.00022465,2]
[358619175,1745314242185,-500.0,0.00022465,2]
[358619176,1745314242194,-1025.11,0.00022465,2]
[358619177,1745314242203,-1793.64012,0.00022465,2]
[358619178,1745314242214,-500.0,0.00022465,2]
[358619179,1745314242223,-500.0,0.00022465,2]
[358619180,1745314242233,-1793.64012,0.00022465,2]
[358619181,1745314242242,-151.0,0.00022466,2]
[358619182,1745314242252,-269.35144115,0.00022466,2]
[358619183,1745314242261,-500.0,0.00022466,2]
[358619184,1745314242270,-500.0,0.00022466,2]
[358619185,1745314242279,-500.0,0.00022466,2]
[358619186,1745314242289,-151.0,0.00022466,2]
[358619187,1745314242298,-151.0,0.00022466,2]
[358619188,1745314242309,-500.0,0.00022466,2]
[358619189,1745314242318,-151.0,0.00022466,2]
[358619190,1745314242327,-500.0,0.00022466,2]
[358619191,1745314242337,-151.0,0.00022466,2]
[358619192,1745314242347,-151.0,0.00022466,2]
[358619193,1745314242356,-151.0,0.00022466,2]
[358619194,1745314242365,-151.0,0.00022466,2]
[358619195,1745314242375,-500.0,0.00022466,2]
[358619196,1745314242384,-500.0,0.00022466,2]
[358619197,1745314242393,-500.0,0.00022466,2]
[358619198,1745314242403,-58659.77165145,0.00022512,2]
[358619199,1745314242577,-26228.30824966,0.00022512,2]
[358619200,1745314242586,-151.0,0.00022512,7]
[358619202,1745314242597,-172.275406,0.00022512,7]
[358619204,1745314242608,-151.0,0.00022512,7]
[358619205,1745314242621,-197.25261,0.00022512,7]
[358619207,1745314242631,-197.25261,0.00022512,7]
[358619208,1745314242640,-151.0,0.00022512,7]
[358619209,1745314242650,-151.0,0.00022512,7]
[358619210,1745314242660,-151.0,0.00022512,7]
[358619211,1745314242670,-151.0,0.00022512,7]
[358619214,1745314242679,-151.0,0.00022512,7]
[358619218,1745314242697,-164.411878,0.00022512,7]
[358619221,1745314242714,-164.411878,0.00022512,7]
[358619224,1745314242723,-151.0,0.00022512,7]
[358619227,1745314242733,-151.0,0.00022512,7]
[358619230,1745314242743,-151.0,0.00022512,7]
[358619232,1745314242752,-151.0,0.00022512,7]
[358619235,1745314242762,-490.981502,0.00022512,7]
[358619237,1745314242772,-490.981502,0.00022512,7]
[358619238,1745314242782,-516.249055,0.00022512,7]
[358619239,1745314242916,-516.249055,0.00022512,7]
[358619240,1745314242926,-151.0,0.00022512,7]
[358619242,1745314242936,-164.575229,0.00022512,7]
[358619244,1745314242946,-164.575229,0.00022512,7]
[358619245,1745314242955,-1793.64012,0.00022512,2]
[358619246,1745314242965,-500.0,0.00022541,2]
[358619247,1745314242976,-151.0,0.00022564,7]
[358619248,1745314242985,-500.0,0.00022564,2]
[358619249,1745314242994,-2248.0,0.00022568,2]
[358619250,1745314243004,-211.228,0.00022568,2]
[358619251,1745314243013,-403.0,0.00022568,2]
[358619252,1745314243023,-1137.66586226,0.000226,4]
[358619253,1745314243032,-1137.66586207,0.000226,4]
[358619254,1745314243042,-151.0,0.00022683,7]
[358619255,1745314243051,-235.879668,0.00022683,7]
[358619256,1745314243061,-235.879668,0.00022683,7]
[358619257,1745314243071,-338.962784,0.00022683,7]
[358619258,1745314243080,-338.962784,0.00022683,7]
[358619259,1745314243090,-500.0,0.00022712,2]
[358619260,1745314243099,-500.0,0.00022712,2]
[358619261,1745314243109,-500.0,0.00022712,2]
[358619262,1745314243119,-151.0,0.00022739,7]
[358619263,1745314243128,-500.0,0.00022739,2]
[358619264,1745314243137,-500.0,0.00022739,2]
[358619265,1745314243147,-521.65613859,0.00022739,2]
[358619266,1745314243157,-151.0,0.00022739,7]
[358619267,1745314243166,-163.825198,0.00022739,7]
[358619268,1745314243175,-513.75,0.00022739,2]
[358619269,1745314243185,-237.388523,0.00022739,2]
[358619270,1745314243194,-500.0,0.00022739,2]
[358619271,1745314243204,-500.0,0.00022739,2]
[358619272,1745314243213,-151.0,0.00022739,7]
[358619273,1745314243223,-500.0,0.00022739,2]
[358619275,1745314243232,-151.0,0.00022739,7]
[358619277,1745314243242,-730.36,0.00022739,2]
[358619279,1745314243251,-151.0,0.00022739,7]
[358619281,1745314243260,-803.17,0.00022739,2]
[358619283,1745314243270,-151.0,0.00022739,7]
[358619284,1745314243280,-500.0,0.00022739,2]
[358619285,1745314243289,-497.46210958,0.00022739,2]
[358619286,1745314243298,-507.83,0.00022739,2]
[358619287,1745314243308,-500.0,0.00022739,2]
[358619288,1745314243318,-563.96,0.00022739,2]
[358619289,1745314243328,-885.26,0.00022739,2]
[358619290,1745314243337,-500.0,0.00022739,2]
[358619291,1745314243348,-500.0,0.00022739,2]
[358619292,1745314243358,-151.0,0.00022739,7]
[358619293,1745314243367,-172.275406,0.00022739,7]
[358619294,1745314243376,-500.0,0.00022739,2]
[358619295,1745314243385,-500.0,0.00022739,2]
[358619296,1745314243395,-197.25261,0.00022739,7]
[358619297,1745314243405,-197.25261,0.00022739,7]
[358619298,1745314243414,-500.0,0.00022739,2]
[358619299,1745314243424,-562.91,0.00022739,2]
[358619300,1745314243433,-500.0,0.00022739,2]
[358619301,1745314243443,-500.0,0.00022739,2]
[358619302,1745314243453,-500.0,0.00022739,2]
[358619303,1745314243463,-862.35,0.00022739,2]
[358619304,1745314243472,-500.0,0.00022739,2]
[358619305,1745314243482,-991.46,0.00022739,2]
[358619306,1745314243491,-500.0,0.00022739,2]
[358619307,1745314243501,-500.0,0.00022739,2]
[358619308,1745314243511,-500.0,0.00022739,2]
[358619309,1745314243520,-500.0,0.00022739,2]
[358619310,1745314243530,-659.07,0.00022739,2]
[358619311,1745314243539,-654.88,0.00022739,2]
[358619312,1745314243549,-369.49035194,0.00022739,2]
[358619313,1745314243559,-151.0,0.00022739,7]
[358619314,1745314243569,-151.0,0.00022739,7]
[358619315,1745314243578,-500.0,0.00022739,2]
[358619316,1745314243588,-500.0,0.00022739,2]
[358619317,1745314243598,-500.0,0.00022739,2]
[358619318,1745314243613,-1442.24,0.00022739,2]
[358619319,1745314243624,-608.96,0.00022739,2]
[358619320,1745314243633,-151.0,0.00022739,7]
[358619321,1745314243643,-151.0,0.00022739,7]
[358619322,1745314243655,-500.0,0.00022739,2]
[358619323,1745314243664,-736.68,0.00022739,2]
[358619324,1745314243674,-500.0,0.00022739,2]
[358619325,1745314243684,-610.01,0.00022739,2]
[358619326,1745314243694,-500.0,0.00022739,2]
[358619327,1745314243703,-500.0,0.00022739,2]
[358619328,1745314243713,-500.0,0.00022739,2]
[358619329,1745314243723,-500.0,0.00022739,2]
[358619330,1745314243732,-151.0,0.00022739,7]
[358619331,1745314243741,-500.0,0.00022739,2]
[358619332,1745314243751,-500.0,0.00022739,2]
[358619333,1745314243761,-958.78,0.00022739,2]
[358619334,1745314243771,-713.31,0.00022739,2]
[358619335,1745314243780,-164.411878,0.00022739,7]
[358619336,1745314243790,-164.411878,0.00022739,7]
[358619337,1745314243800,-2028.73,0.00022739,2]
[358619338,1745314243811,-500.0,0.00022739,2]
[358619339,1745314243821,-390.98499167,0.00022739,2]
[358619340,1745314243838,-500.0,0.00022739,2]
[358619341,1745314243857,-151.0,0.00022739,7]
[358619342,1745314243872,-500.0,0.00022739,2]
[358619343,1745314243887,-500.0,0.00022739,2]
[358619344,1745314243903,-500.0,0.00022739,2]
[358619345,1745314243921,-586.6,0.00022739,2]
[358619346,1745314243937,-740.53,0.00022739,2]
[358619347,1745314243955,-151.0,0.00022739,7]
[358619348,1745314243971,-882.22,0.00022739,2]
[358619349,1745314243987,-920.82,0.00022739,2]
[358619350,1745314244002,-652.82,0.00022739,2]
[358619351,1745314244020,-1168.95,0.00022739,2]
[358619352,1745314244034,-500.0,0.00022739,2]
[358619353,1745314244047,-500.0,0.00022739,2]
[358619354,1745314244061,-648.7,0.00022739,2]
[358619355,1745314244075,-500.0,0.00022739,2]
[358619356,1745314244092,-500.0,0.00022739,2]
[358619357,1745314244108,-500.0,0.00022739,2]
[358619358,1745314244125,-500.0,0.00022739,2]
[358619359,1745314244143,-525.39,0.00022739,2]
[358619360,1745314244156,-151.0,0.00022739,7]
[358619361,1745314244168,-960.81,0.00022739,2]
[358619362,1745314244181,-500.0,0.00022739,2]
[358619363,1745314244199,-538.1,0.00022739,2]
[358619364,1745314244213,-500.0,0.00022739,2]
[358619365,1745314244226,-500.0,0.00022739,2]
[358619366,1745314244241,-500.0,0.00022739,2]
[358619367,1745314244254,-500.0,0.00022739,2]
[358619368,1745314244266,-151.0,0.00022739,7]
[358619369,1745314244279,-235.879668,0.00022739,7]
[358619370,1745314244294,-566.3,0.00022739,2]
[358619371,1745314244307,-235.879668,0.00022739,7]
[358619372,1745314244323,-500.0,0.00022739,2]
[358619373,1745314244336,-575.68,0.00022739,2]
[358619374,1745314244349,-200.74232336,0.00022739,2]
[358619375,1745314244362,-581.96,0.00022739,2]
[358619376,1745314244376,-338.962784,0.00022739,7]
[358619377,1745314244391,-500.0,0.00022739,2]
[358619378,1745314244404,-338.962784,0.00022739,7]
[358619379,1745314244417,-627.07,0.00022739,2]
[358619380,1745314244431,-500.0,0.00022739,2]
[358619381,1745314244444,-525.86,0.00022739,2]
[358619382,1745314244458,-151.0,0.00022739,7]
[358619383,1745314244473,-842.69,0.00022739,2]
[358619384,1745314244488,-500.0,0.00022739,2]
[358619385,1745314244502,-500.0,0.00022739,2]
[358619386,1745314244516,-500.0,0.00022739,2]
[358619387,1745314244530,-13294.97,0.00022739,2]
[358619388,1745314244544,-500.0,0.00022739,2]
[358619389,1745314244558,-151.0,0.00022739,7]
[358619390,1745314244572,-500.0,0.00022739,2]
[358619391,1745314244585,-500.0,0.00022739,2]
[358619392,1745314244600,-851.23,0.00022739,2]
[358619393,1745314244615,-500.0,0.00022739,2]
[358619394,1745314244629,-500.0,0.00022739,2]
[358619395,1745314244644,-592.86,0.00022739,2]
[358619396,1745314244660,-1351.34,0.00022739,2]
[358619397,1745314244673,-490.981502,0.00022739,7]
[358619398,1745314244689,-500.0,0.00022739,2]
[358619399,1745314244704,-490.981502,0.00022739,7]
[358619400,1745314244719,-500.0,0.00022739,2]
[358619401,1745314244733,-928.74,0.00022739,2]
[358619402,1745314244747,-500.0,0.00022739,2]
[358619403,1745314244762,-528.08,0.00022739,2]
[358619404,1745314244776,-1029.33,0.00022739,2]
[358619405,1745314244788,-500.0,0.00022739,2]
[358619406,1745314244798,-500.0,0.00022739,2]
[358619407,1745314244808,-927.82,0.00022739,2]
[358619408,1745314244818,-511.59,0.00022739,2]
[358619409,1745314244828,-651.02,0.00022739,2]
[358619410,1745314244838,-500.0,0.00022739,2]
[358619411,1745314244847,-687.17,0.00022739,2]
[358619412,1745314244857,-570.98,0.00022739,2]
[358619413,1745314244867,-516.249055,0.00022739,7]
[358619414,1745314244877,-500.0,0.00022739,2]
[358619415,1745314244886,-516.249055,0.00022739,7]
[358619416,1745314244896,-500.0,0.00022739,2]
[358619417,1745314244906,-173.690083,0.00022739,7]
[358619418,1745314244915,-500.0,0.00022739,2]
[358619419,1745314244924,-2105.46,0.00022739,2]
[358619420,1745314244934,-644.28,0.00022739,2]
[358619421,1745314244944,-500.0,0.00022739,2]
[358619422,1745314244954,-3664.15,0.00022739,2]
[358619423,1745314244963,-500.0,0.00022739,2]
[358619424,1745314244974,-500.0,0.00022739,2]
[358619425,1745314244984,-500.0,0.00022739,2]
[358619426,1745314244994,-880.71,0.00022739,2]
[358619427,1745314245004,-500.0,0.00022739,2]
[358619428,1745314245014,-819.23,0.00022739,2]
[358619429,1745314245023,-164.575229,0.00022739,7]
[358619430,1745314245033,-608.36413199,0.00022739,2]
[358619431,1745314245043,-500.0,0.00022739,2]
[358619432,1745314245314,-500.0,0.00022739,2]
[358619433,1745314245338,-1875.31,0.00022739,2]
[358619434,1745314245353,-164.575229,0.00022739,7]
[358619435,1745314245363,-661.71,0.00022739,2]
[358619436,1745314245373,-500.0,0.00022739,2]
[358619437,1745314245383,-634.83,0.00022739,2]
[358619438,1745314245392,-500.0,0.00022739,2]
[358619439,1745314245402,-500.0,0.00022739,2]
[358619440,1745314245411,-500.0,0.00022739,2]
[358619441,1745314245421,-500.0,0.00022739,2]
[358619442,1745314245431,-500.0,0.00022739,2]
[358619443,1745314245441,-500.0,0.00022739,2]
[358619445,1745314245450,-500.0,0.00022739,2]
[358619446,1745314245460,-1027.86,0.00022739,2]
[358619447,1745314245470,-500.0,0.00022739,2]
[358619448,1745314245479,-500.0,0.00022739,2]
[358619449,1745314245489,-2241.63,0.00022739,2]
[358619450,1745314245499,-500.0,0.00022739,2]
[358619451,1745314245509,-500.0,0.00022739,2]
[358619452,1745314245519,-8171.88,0.00022739,2]
[358619453,1745314245529,-500.0,0.00022739,2]
[358619454,1745314245538,-500.0,0.00022739,2]
[358619455,1745314245548,-500.0,0.00022739,2]
[358619456,1745314245558,-672.1,0.00022739,2]
[358619458,1745314245568,-500.0,0.00022739,2]
[358619460,1745314245577,-827.8,0.00022739,2]
[358619462,1745314245587,-500.0,0.00022739,2]
[358619464,1745314245596,-500.0,0.00022739,2]
[358619466,1745314245611,-1028.74,0.00022739,2]
[358619468,1745314245620,-629.89,0.00022739,2]
[358619470,1745314245630,-6020.14,0.00022739,2]
[358619472,1745314245640,-500.0,0.00022739,2]
[358619474,1745314245651,-620.71,0.00022739,2]
[358619476,1745314245661,-500.0,0.00022739,2]
[358619478,1745314245671,-509.81,0.00022739,2]
[358619480,1745314245680,-531.69,0.00022739,2]
[358619482,1745314245690,-500.0,0.00022739,2]
[358619483,1745314245700,-534.38,0.00022739,2]
[358619485,1745314245710,-500.0,0.00022739,2]
[358619486,1745314245719,-500.0,0.00022739,2]
[358619488,1745314245729,-1025.11,0.00022739,2]
[358619490,1745314245740,-500.0,0.00022739,2]
[358619491,1745314245750,-500.0,0.00022739,2]
[358619493,1745314245759,-215.0738,0.00022749,2]
[358619495,1745314245768,-1259.95647937,0.0002278,2]
[358619496,1745314245778,-500.0,0.00022781,2]
[358619498,1745314245788,-500.0,0.00022781,2]
[358619499,1745314245797,-500.0,0.00022787,2]
[358619501,1745314245807,-500.0,0.00022787,2]
[358619503,1745314245818,-504.56656241,0.00022787,2]
[358619504,1745314245827,-151.0,0.000229,7]
[358619506,1745314245837,-151.0,0.000229,9]
[358619508,1745314245846,-160.0,0.00023,3]
[358619509,1745314245856,-153.0,0.00023,2]
[358619511,1745314245865,-160.0,0.00023,3]
[358619512,1745314245875,-420.73667954,0.00023,3]
[358619514,1745314245884,-151.0,0.00023013,7]
[358619516,1745314245893,-151.0,0.00023013,7]
[358619519,1745314245902,-500.0,0.00023013,2]
[358619520,1745314245911,-500.0,0.00023013,2]
[358619522,1745314245922,-151.0,0.00023013,7]
[358619524,1745314245931,-513.75,0.00023013,2]
[358619525,1745314245941,-237.388523,0.00023013,2]
[358619527,1745314245950,-500.0,0.00023013,2]
[358619529,1745314245959,-500.0,0.00023013,2]
[358619530,1745314245969,-151.0,0.00023013,7]
[358619532,1745314245978,-500.0,0.00023013,2]
[358619534,1745314245988,-151.0,0.00023013,7]
[358619535,1745314245998,-151.0,0.00023013,7]
[358619537,1745314246007,-730.36,0.00023013,2]
[358619539,1745314246017,-153.619473,0.00023013,7]
[358619541,1745314246026,-803.17,0.00023013,2]
[358619543,1745314246035,-151.0,0.00023013,7]
[358619544,1745314246044,-500.0,0.00023013,2]
[358619546,1745314246054,-507.83,0.00023013,2]
[358619548,1745314246063,-500.0,0.00023013,2]
[358619549,1745314246072,-563.96,0.00023013,2]
[358619551,1745314246082,-885.26,0.00023013,2]
[358619553,1745314246091,-500.0,0.00023013,2]
[358619554,1745314246100,-500.0,0.00023013,2]
[358619557,1745314246110,-153.529888,0.00023013,7]
[358619558,1745314246119,-172.275406,0.00023013,7]
[358619559,1745314246128,-500.0,0.00023013,2]
[358619560,1745314246137,-580.86,0.00023013,2]
[358619561,1745314246147,-197.25261,0.00023013,7]
[358619562,1745314246156,-197.25261,0.00023013,7]
[358619564,1745314246166,-500.0,0.00023013,2]
[358619566,1745314246175,-562.91,0.00023013,2]
[358619568,1745314246187,-500.0,0.00023013,2]
[358619570,1745314246196,-500.0,0.00023013,2]
[358619573,1745314246206,-500.0,0.00023013,2]
[358619575,1745314246215,-862.35,0.00023013,2]
[358619577,1745314246225,-500.0,0.00023013,2]
[358619579,1745314246234,-991.46,0.00023013,2]
[358619581,1745314246243,-500.0,0.00023013,2]
[358619583,1745314246252,-500.0,0.00023013,2]
[358619585,1745314246262,-500.0,0.00023013,2]
[358619587,1745314246271,-500.0,0.00023013,2]
[358619589,1745314246281,-659.07,0.00023013,2]
[358619591,1745314246291,-654.88,0.00023013,2]
[358619593,1745314246301,-151.0,0.00023013,7]
[358619595,1745314246311,-151.0,0.00023013,7]
[358619597,1745314246320,-500.0,0.00023013,2]
[358619599,1745314246330,-500.0,0.00023013,2]
[358619601,1745314246339,-500.0,0.00023013,2]
[358619603,1745314246350,-1442.24,0.00023013,2]
[358619604,1745314246361,-608.96,0.00023013,2]
[358619605,1745314246371,-268.495267,0.00023013,7]
[358619606,1745314246381,-500.0,0.00023013,2]
[358619607,1745314246390,-736.68,0.00023013,2]
[358619608,1745314246399,-638.41600868,0.00023013,2]
[358619609,1745314246409,-610.01,0.00023013,2]
[358619610,1745314246418,-547.75276141,0.00023013,2]
[358619611,1745314246428,-500.0,0.00023013,2]
[358619612,1745314246437,-500.0,0.00023013,2]
[358619613,1745314246446,-500.0,0.00023013,2]
[358619614,1745314246456,-151.0,0.00023013,7]
[358619615,1745314246465,-500.0,0.00023013,2]
[358619616,1745314246475,-500.0,0.00023013,2]
[358619617,1745314246484,-958.78,0.00023013,2]
[358619618,1745314246494,-713.31,0.00023013,2]
[358619619,1745314246503,-164.411878,0.00023013,7]
[358619620,1745314246514,-164.411878,0.00023013,7]
[358619621,1745314246524,-2028.73,0.00023013,2]
[358619622,1745314246533,-500.0,0.00023013,2]
[358619623,1745314246543,-500.0,0.00023013,2]
[358619624,1745314246553,-151.0,0.00023013,7]
[358619625,1745314246563,-500.0,0.00023013,2]
[358619626,1745314246572,-180.22179379,0.00023013,2]
[358619627,1745314246582,-500.0,0.00023013,2]
[358619628,1745314246591,-586.6,0.00023013,2]
[358619629,1745314246601,-151.0,0.00023013,7]
[358619630,1745314246611,-740.53,0.00023013,2]
[358619631,1745314246621,-151.0,0.00023013,7]
[358619632,1745314246631,-882.22,0.00023013,2]
[358619633,1745314246640,-920.82,0.00023013,2]
[358619634,1745314246651,-652.82,0.00023013,2]
[358619635,1745314246661,-1168.95,0.00023013,2]
[358619636,1745314246670,-500.0,0.00023013,2]
[358619637,1745314246679,-500.0,0.00023013,2]
[358619638,1745314246690,-648.7,0.00023013,2]
[358619639,1745314246700,-500.0,0.00023013,2]
[358619640,1745314246710,-500.0,0.00023013,2]
[358619641,1745314246719,-500.0,0.00023013,2]
[358619642,1745314246728,-500.0,0.00023013,2]
[358619643,1745314246738,-525.39,0.00023013,2]
[358619644,1745314246748,-151.0,0.00023013,7]
[358619645,1745314246757,-960.81,0.00023013,2]
[358619646,1745314246767,-500.0,0.00023013,2]
[358619647,1745314246777,-538.1,0.00023013,2]
[358619648,1745314246788,-500.0,0.00023013,2]
[358619649,1745314246798,-500.0,0.00023013,2]
[358619650,1745314246808,-500.0,0.00023013,2]
[358619651,1745314246817,-500.0,0.00023013,2]
[358619652,1745314246826,-151.0,0.00023013,7]
[358619653,1745314246836,-235.879668,0.00023013,7]
[358619654,1745314246847,-566.3,0.00023013,2]
[358619655,1745314246857,-235.879668,0.00023013,7]
[358619656,1745314246866,-500.0,0.00023013,2]
[358619657,1745314246875,-575.68,0.00023013,2]
[358619658,1745314246885,-581.96,0.00023013,2]
[358619659,1745314246894,-338.962784,0.00023013,7]
[358619660,1745314246904,-500.0,0.00023013,2]
[358619661,1745314246913,-338.962784,0.00023013,7]
[358619662,1745314246923,-627.07,0.00023013,2]
[358619663,1745314246933,-500.0,0.00023013,2]
[358619664,1745314246943,-525.86,0.00023013,2]
[358619665,1745314246952,-151.0,0.00023013,7]
[358619666,1745314246961,-842.69,0.00023013,2]
[358619667,1745314246971,-500.0,0.00023013,2]
[358619668,1745314246981,-500.0,0.00023013,2]
[358619669,1745314246991,-500.0,0.00023013,2]
[358619670,1745314247000,-13294.97,0.00023013,2]
[358619671,1745314247011,-500.0,0.00023013,2]
[358619672,1745314247021,-151.0,0.00023013,7]
[358619673,1745314247031,-500.0,0.00023013,2]
[358619674,1745314247041,-500.0,0.00023013,2]
[358619675,1745314247051,-851.23,0.00023013,2]
[358619676,1745314247061,-500.0,0.00023013,2]
[358619677,1745314247071,-500.0,0.00023013,2]
[358619678,1745314247081,-592.86,0.00023013,2]
[358619679,1745314247090,-1351.34,0.00023013,2]
[358619680,1745314247100,-490.981502,0.00023013,7]
[358619681,1745314247109,-500.0,0.00023013,2]
[358619682,1745314247119,-490.981502,0.00023013,7]
[358619683,1745314247128,-500.0,0.00023013,2]
[358619684,1745314247138,-928.74,0.00023013,2]
[358619685,1745314247147,-500.0,0.00023013,2]
[358619686,1745314247157,-528.08,0.00023013,2]
[358619687,1745314247166,-1029.33,0.00023013,2]
[358619688,1745314247176,-500.0,0.00023013,2]
[358619689,1745314247185,-500.0,0.00023013,2]
[358619690,1745314247194,-927.82,0.00023013,2]
[358619691,1745314247203,-511.59,0.00023013,2]
[358619692,1745314247213,-651.02,0.00023013,2]
[358619693,1745314247222,-500.0,0.00023013,2]
[358619694,1745314247232,-687.17,0.00023013,2]
[358619695,1745314247241,-570.98,0.00023013,2]
[358619696,1745314247251,-516.249055,0.00023013,7]
[358619697,1745314247260,-500.0,0.00023013,2]
[358619698,1745314247270,-516.249055,0.00023013,7]
[358619699,1745314247279,-500.0,0.00023013,2]
[358619700,1745314247289,-500.0,0.00023013,2]
[358619701,1745314247298,-2105.46,0.00023013,2]
[358619702,1745314247308,-644.28,0.00023013,2]
[358619703,1745314247319,-500.0,0.00023013,2]
[358619704,1745314247328,-3664.15,0.00023013,2]
[358619705,1745314247339,-500.0,0.00023013,2]
[358619706,1745314247349,-500.0,0.00023013,2]
[358619707,1745314247358,-500.0,0.00023013,2]
[358619708,1745314247368,-880.71,0.00023013,2]
[358619709,1745314247378,-500.0,0.00023013,2]
[358619710,1745314247387,-819.23,0.00023013,2]
[358619711,1745314247397,-164.575229,0.00023013,7]
[358619712,1745314247406,-500.0,0.00023013,2]
[358619713,1745314247415,-500.0,0.00023013,2]
[358619714,1745314247424,-164.575229,0.00023013,7]
[358619715,1745314247434,-1875.31,0.00023013,2]